Workbook

Sheet 1. Impact of cold stress
B2: Impact of Cold Stress on Energy Requirements
C5: Extra energy required per day for specific temperature (MJ/day)
A6: Bodyweight (kg) | C6: 40 | D6: 50 | E6: 60 | F6: 70 | G6: 80 | H6: 90 | I6: 100
A7: Ambient Temperature (assumed no drafts and a normal relative humidity) (◦C) | B7: 20 | C7: 0 | D7: 0 | E7: 0 | F7: 0 | G7: 0 | H7: 0 | I7: 0
B8: 15 | C8: 0 | D8: 0 | E8: 0 | F8: 0 | G8: 0 | H8: 0 | I8: 0
B9: 10 | C9: =(((2.15*(C6^0.75))/0.8)*(5*4.184))/1000 -> 0.894242171 | D9: =(((2.15*(D6^0.75))/0.8)*(5*4.184))/1000 -> 1.057152537 | E9: 0 | F9: 0 | G9: 0 | H9: 0 | I9: 0
B10: 5 | C10: =(((2.15*($C$6^0.75))/0.8)*(10*4.184))/1000 -> 1.788484342 | D10: =(((2.15*($D$6^0.75))/0.8)*(10*4.184))/1000 -> 2.114305074 | E10: =(((2.15*(E6^0.75))/0.8)*(5*4.184))/1000 -> 1.212058526 | F10: =(((2.15*(F6^0.75))/0.8)*(5*4.184))/1000 -> 1.360610077 | G10: 1.503930072 | H10: 1.642827769 | I10: 1.777911557
B11: 0 | C11: =(((2.15*($C$6^0.75))/0.8)*(15*4.184))/1000 -> 2.682726513 | D11: =(((2.15*($D$6^0.75))/0.8)*(15*4.184))/1000 -> 3.171457611 | E11: =(((2.15*(E6^0.75))/0.8)*(10*4.184))/1000 -> 2.424117052 | F11: =(((2.15*(F6^0.75))/0.8)*(10*4.184))/1000 -> 2.721220154 | G11: 3.007860144 | H11: 3.285655538 | I11: 3.555823115
B12: -5 | C12: =(((2.15*($C$6^0.75))/0.8)*(20*4.184))/1000 -> 3.576968684 | D12: =(((2.15*($D$6^0.75))/0.8)*(20*4.184))/1000 -> 4.228610148 | E12: =(((2.15*(E6^0.75))/0.8)*(15*4.184))/1000 -> 3.636175578 | F12: =(((2.15*(F6^0.75))/0.8)*(15*4.184))/1000 -> 4.081830231 | G12: 4.511790216 | H12: 4.928483307 | I12: 5.333734672
B13: -10 | C13: =(((2.15*($C$6^0.75))/0.8)*(25*4.184))/1000 -> 4.471210855 | D13: =(((2.15*($D$6^0.75))/0.8)*(25*4.184))/1000 -> 5.285762685 | E13: =(((2.15*(E6^0.75))/0.8)*(20*4.184))/1000 -> 4.848234104 | F13: =(((2.15*(F6^0.75))/0.8)*(20*4.184))/1000 -> 5.442440308 | G13: 6.015720287 | H13: 6.571311076 | I13: 7.11164623
B14: -15 | C14: =(((2.15*($C$6^0.75))/0.8)*(30*4.184))/1000 -> 5.365453026 | D14: =(((2.15*($D$6^0.75))/0.8)*(30*4.184))/1000 -> 6.342915222 | E14: =(((2.15*(E6^0.75))/0.8)*(25*4.184))/1000 -> 6.06029263 | F14: =(((2.15*(F6^0.75))/0.8)*(25*4.184))/1000 -> 6.803050385 | G14: 7.519650359 | H14: 8.214138845 | I14: 8.889557787
A16: Assumptions:
A17: Lower critical temperature of calves <60kg is 15C
A18: Lower critical temperature of calves ≥ 60kg is 10C
A19: (based on NRC recommendations)

Sheet 2. Energy required to grow
A7: Milk Replacer Metabolisable Energy | D7: Concentrate Metabolisable Energy
A8: MJ per kg of milk replacer | B8: ='3. Basic Calculator'!F16 ->  | D8: ME of concentrate eaten | F8: ='3. Basic Calculator'!F22 -> 0 | G8: MJ/kg
A9: MJ per litre of milk replacer | B9: ='3. Basic Calculator'!F17 -> 
A10: Total Metabolisable Energy Fed | B10: ='3. Basic Calculator'!F18 -> 
A12: Comparison of Energy Required at Different Growth Rates and Amount of Energy Fed
A13: Body Weight (kg) | B13: 40 | C13: 50 | D13: 60 | E13: 70 | F13: 80 | G13: 90 | H13: 100
A14: Energy for Maintenance (MJ/d) | B14: =0.428*(B13^0.75) -> 6.807517438 | C14: =0.428*(C13^0.75) -> 8.047690619 | D14: 9.226929595 | E14: 10.35779471 | F14: 11.44883402 | G14: 12.5062081 | H14: 13.53454839
A15: Energy received from milk replacer fed | B15: =B10 ->  | C15: =$B$10 ->  | D15: =$B$10 -> 
A16: Maintenance and growth at 0.6kg/d (MJ/day) | B16: =4.2*((0.1*(B13^0.75))+((0.84*(B13^0.355))*(0.6^1.2))) -> 13.76040643 | C16: =4.2*((0.1*(C13^0.75))+((0.84*(C13^0.355))*(0.6^1.2))) -> 15.56107119 | D16: 17.23070625 | E16: 18.80033519 | F16: 20.29022427 | G16: 21.71449442 | H16: 23.08346187
A17: Potential energy deficit to grow at 0.6kg/d (MJ/d) | B17: =IF($B$8="","",IF($B$8>0.0001,(B16-$B$10))) ->  | C17: =IF($B$8="","",IF($B$8>0.0001,(C16-$B$10))) -> 
A18: Energy required from concentrate (g) | B18: =IF($B$8="","",IF($B$8>0.0001,(B17/$F$8)*1000)) ->  | C18: =IF($B$8="","",IF($B$8>0.0001,(C17/$F$8)*1000)) -> 
A19: Maintenance and growth at 0.8kg/d | B19: =4.2*((0.1*(B13^0.75))+((0.84*(B13^0.355))*(0.8^1.2))) -> 16.67953405 | C19: =4.2*((0.1*(C13^0.75))+((0.84*(C13^0.355))*(0.8^1.2))) -> 18.72084602 | D19: 20.60175846 | E19: 22.36100406 | F19: 24.02374639 | G19: 25.6074359 | H19: 27.12476832
A20: Energy deficit to grow at 0.8kg/d (MJ/d) | B20: =IF($B$8="","",IF($B$8>0.0001, (B19-B15))) ->  | C20: =IF($B$8="","",IF($B$8>0.0001, (C19-C15))) -> 
A21: Energy required from concentrate (g) | B21: =IF($B$8="","",IF($B$8>0.0001,(B20/$F$8)*1000)) ->  | C21: =IF($B$8="","",IF($B$8>0.0001,(C20/$F$8)*1000)) -> 
A22: Maintenance and growth at 1.0kg/d | B22: =4.2*((0.1*(B13^0.75))+((0.84*(B13^0.355))*(1^1.2))) -> 19.74980121 | C22: =4.2*((0.1*(C13^0.75))+((0.84*(C13^0.355))*(1^1.2))) -> 22.04422006 | D22: 24.14734888 | E22: 26.10602867 | F22: 27.95057383 | G22: 29.70193672 | H22: 31.3753158 | J22: Critically important
A23: Energy deficit to grow at 1.0kg/d (MJ/d) | B23: =IF($B$8="","",IF($B$8>0.0001,(B22-B15))) ->  | C23: =IF($B$8="","",IF($B$8>0.0001,(C22-C15))) ->  | J23: =SUMIFS($E$6:$E$50,$F$6:$F$50,"CRITICAL",$A$6:$A$50,$G23) -> 0
A24: Energy required from concentrate (g) | B24: =IF($B$8="","",IF($B$8>0.0001,(B23/$F$8)*1000)) ->  | C24: =IF($B$8="","",IF($B$8>0.0001,(C23/$F$8)*1000)) ->  | J24: =SUMIFS($E$6:$E$50,$F$6:$F$50,"CRITICAL",$A$6:$A$50,$G24) -> 0
D25: =IF(B25="","",VLOOKUP(B25,All,9,FALSE)) ->  | E25: =IF(B25="","",(C25*(VLOOKUP(B25,All,8,FALSE))/('1. Impact of cold stress'!$B$7))) ->  | F25: =IF(B25="","",IF((VLOOKUP(B25,All,7,FALSE)>0),"CRITICAL","")) ->  | G25: Drytube | H25: =SUMIFS($E$6:$E$50,$F$6:$F$50,"",$A$6:$A$50,$G25) -> 0 | J25: =SUMIFS($E$6:$E$50,$F$6:$F$50,"CRITICAL",$A$6:$A$50,$G25) -> 0
E26: =IF(B26="","",(C26*(VLOOKUP(B26,All,8,FALSE))/('1. Impact of cold stress'!$B$7))) ->  | G26: Footbath | H26: =SUMIFS($E$6:$E$50,$F$6:$F$50,"",$A$6:$A$50,$G26) -> 0 | J26: =SUMIFS($E$6:$E$50,$F$6:$F$50,"CRITICAL",$A$6:$A$50,$G26) -> 0
E27: =IF(B27="","",(C27*(VLOOKUP(B27,All,8,FALSE))/('1. Impact of cold stress'!$B$7))) ->  | G27: Other | H27: =SUMIFS($E$6:$E$50,$F$6:$F$50,"",$A$6:$A$50,$G27) -> 0 | J27: =SUMIFS($E$6:$E$50,$F$6:$F$50,"CRITICAL",$A$6:$A$50,$G27) -> 0
E28: =IF(B28="","",(C28*(VLOOKUP(B28,All,8,FALSE))/('1. Impact of cold stress'!$B$7))) -> 
E29: =IF(B29="","",(C29*(VLOOKUP(B29,All,8,FALSE))/('1. Impact of cold stress'!$B$7))) -> 
E30: =IF(B30="","",(C30*(VLOOKUP(B30,All,8,FALSE))/('1. Impact of cold stress'!$B$7))) -> 
E31: =IF(B31="","",(C31*(VLOOKUP(B31,All,8,FALSE))/('1. Impact of cold stress'!$B$7))) -> 
E32: =IF(B32="","",(C32*(VLOOKUP(B32,All,8,FALSE))/('1. Impact of cold stress'!$B$7))) -> 
E33: =IF(B33="","",(C33*(VLOOKUP(B33,All,8,FALSE))/('1. Impact of cold stress'!$B$7))) -> 
E34: =IF(B34="","",(C34*(VLOOKUP(B34,All,8,FALSE))/('1. Impact of cold stress'!$B$7))) -> 
E35: =IF(B35="","",(C35*(VLOOKUP(B35,All,8,FALSE))/('1. Impact of cold stress'!$B$7))) -> 
E36: =IF(B36="","",(C36*(VLOOKUP(B36,All,8,FALSE))/('1. Impact of cold stress'!$B$7))) -> 
E37: =IF(B37="","",(C37*(VLOOKUP(B37,All,8,FALSE))/('1. Impact of cold stress'!$B$7))) -> 
E38: =IF(B38="","",(C38*(VLOOKUP(B38,All,8,FALSE))/('1. Impact of cold stress'!$B$7))) -> 
E39: =IF(B39="","",(C39*(VLOOKUP(B39,All,8,FALSE))/('1. Impact of cold stress'!$B$7))) -> 
E40: =IF(B40="","",(C40*(VLOOKUP(B40,All,8,FALSE))/('1. Impact of cold stress'!$B$7))) -> 
E41: =IF(B41="","",(C41*(VLOOKUP(B41,All,8,FALSE))/('1. Impact of cold stress'!$B$7))) -> 
E42: =IF(B42="","",(C42*(VLOOKUP(B42,All,8,FALSE))/('1. Impact of cold stress'!$B$7))) -> 
E43: =IF(B43="","",(C43*(VLOOKUP(B43,All,8,FALSE))/('1. Impact of cold stress'!$B$7))) -> 
E44: =IF(B44="","",(C44*(VLOOKUP(B44,All,8,FALSE))/('1. Impact of cold stress'!$B$7))) -> 
E45: =IF(B45="","",(C45*(VLOOKUP(B45,All,8,FALSE))/('1. Impact of cold stress'!$B$7))) -> 
E46: =IF(B46="","",(C46*(VLOOKUP(B46,All,8,FALSE))/('1. Impact of cold stress'!$B$7))) -> 
E47: =IF(B47="","",(C47*(VLOOKUP(B47,All,8,FALSE))/('1. Impact of cold stress'!$B$7))) -> 
E48: =IF(B48="","",(C48*(VLOOKUP(B48,All,8,FALSE))/('1. Impact of cold stress'!$B$7))) -> 
E49: =IF(B49="","",(C49*(VLOOKUP(B49,All,8,FALSE))/('1. Impact of cold stress'!$B$7))) -> 
E50: =IF(B50="","",(C50*(VLOOKUP(B50,All,8,FALSE))/('1. Impact of cold stress'!$B$7))) -> 

Sheet 3. Basic Calculator
A9: Specification of the Milk Replacer Fed
A10: Assumed moisture content | E10: Amount of Milk Replacer Fed
A11: Crude Protein | E11: Volume of Milk Replacer | H11: Litres
A12: Crude Fat | E12: Concentration of Milk Replacer | H12: g/L | I12: =IF(G12="","",MAX(0,IF(G12>160,(a)))) -> 
A13: Crude Ash | E13: Total amount of solids | G13: =IF(G11="","",IF(G11>0.01, (G12*G11))) ->  | H13: grams
A14: Crude Fibre | K14: Feeding Required to achieve desired growth rates
A15: Calculated Lactose | B15: =IF(B11="","",IF(B11>1,(100-B11-B12-B13-B14))) ->  | E15: Metabolisable Energy | K15: Total energy required | L15: =IF($B$19="","",IF($B$19<21,($B$22+$B$27),($B$22+$B$28))) ->  | M15: MJ/d
E16: MJ per kg of milk replacer | F16: =IF(B11="","",IF(B11>0.001,(((100-B10)/100)*(B11*0.057)+(0.092*B12)+(0.0395*B15))*3.77)) ->  | K16: Energy from fed concentrate | L16: =$F$23 ->  | M16: MJ/d
E17: MJ per litre of milk replacer | F17: =IF(F16="","",IF(F16>0.001,(F16/1000)*G12)) ->  | K17: Energy required from milk replacer | L17: =IF($L$15="","",IF($L$15>0.01,L15-L16)) ->  | M17: MJ/d
A18: Calf Information | E18: Total Metabolisable Energy Fed | F18: =IF(F17="","",IF(F17>0.001,(F17*G11))) ->  | K18: Total amount of solids to be fed | L18: =IF($L$15="","",IF($L$15>0.001,($L$17/$F$16)*1000)) ->  | M18: grams/d
A19: Age of Calf (days) | K19: Amount of milk replacer to be fed to achieve desired growth rate | L19: =IF($L$15="","",IF($L$15>0.001,($L$18/$G$12))) ->  | M19: L/d
A20: Weight of Calf (kg) | E20: Concentrate Feeding
A21: Desired growth rate (kg/d) | E21: Amount of concentrate eaten per head per day | G21: g | K21: Theoretical growth rates achievable on current feeding regime
A22: Required Energy (MJ/d) | B22: =4.2*((0.1*(B20^0.75))+((0.84*(B20^0.355))*(B21^1.2))) -> 0 | E22: ME of concentrate eaten | G22: MJ/kg | K22: Energy provided from milk replacer | L22: =F18 ->  | M22: MJ/d
E23: ME from concentrate fed | F23: =IF(F21="","",IF(F21>0.001,((F21/1000)*F22))) ->  | K23: Energy provided from concentrates | L23: =F23 ->  | M23: MJ/d
K24: Impact of cold | L24: =IF(L22="","",MAX(0,IF(B19<21,B27,B28))) ->  | M24: MJ/d
A25: Environmental Impact | K25: Total Energy Provided | L25: =IF(L22="","",(L22+L23)-L24) ->  | M25: MJ/d
A26: Environmental Temperature | C26: °C | K26: Theoretical growth rate | L26: =IF(L23="","",(((L25/4.2)-(0.1*(B20^0.75)))/(0.84*(B20^0.355)))^(1/1.2)) ->  | M26: kg/d
A27: if <3 weeks old | B27: =MAX(0,(((2.15*(B20^0.75))/0.8)*((15-B26)*4.184))/1000) -> 0 | C27: MJ/d
A28: if ≥3 weeks old | B28: =MAX( 0,(((2.15*(B20^0.75))/0.8)*((10-B26)*4.184))/1000) -> 0 | C28: MJ/d
A40: =IF('2. Energy required to grow'!A27="","",'2. Energy required to grow'!A27) ->  | B40: =IF('2. Energy required to grow'!B27="","",'2. Energy required to grow'!B27) ->  | E40: =IF('2. Energy required to grow'!C27="","",'2. Energy required to grow'!C27) ->  | F40: =IF('2. Energy required to grow'!D27="","",'2. Energy required to grow'!D27) ->  | G40: =IF(B40="","",E40*VLOOKUP(B40,All,8,FALSE)) ->  | H40: =IF('2. Energy required to grow'!E27="","",'2. Energy required to grow'!E27) ->  | J40: =IF(A40="","",IF(A40="lactatingtube",E40/S40/'1. Impact of cold stress'!$B$2,IF('3. Basic Calculator'!A40="drytube","",IF(A40="Footbath",G40/S40/'1. Impact of cold stress'!$B$2,IF(B40='Sheet 5'!$A$114,E40/'1. Impact of cold stress'!$B$2,IF(A40="other",H40/S40,IF(U40="kg",H40/S40,""))))))) ->  | K40: =IF(A40="","",IF(A40="lactatingtube",E40/T40/'1. Impact of cold stress'!$B$2,IF('3. Basic Calculator'!A40="drytube",E40/T40/'1. Impact of cold stress'!$B$2,IF(A40="Footbath",J40,IF(B40='Sheet 5'!$A$114,E40/T40/'1. Impact of cold stress'!$B$2,IF(A40="other",H40/T40,IF(U40="kg",H40/T40,""))))))) ->  | L40: =IF(A40="","",IF(A40="Footbath","Cow",IF(B40='Sheet 5'!$A$114,"Cow",IF(A40="other","PCU",IF(U40="kg","PCU",IF(U40="unit","Cow"," ")))))) ->  | M40: =IF(B40="","",IF((VLOOKUP(B40,All,7,FALSE)>0),"CRITICAL","")) -> 
A41: =IF('2. Energy required to grow'!A28="","",'2. Energy required to grow'!A28) ->  | B41: =IF('2. Energy required to grow'!B28="","",'2. Energy required to grow'!B28) ->  | E41: =IF('2. Energy required to grow'!C28="","",'2. Energy required to grow'!C28) ->  | F41: =IF('2. Energy required to grow'!D28="","",'2. Energy required to grow'!D28) ->  | G41: =IF(B41="","",E41*VLOOKUP(B41,All,8,FALSE)) ->  | H41: =IF('2. Energy required to grow'!E28="","",'2. Energy required to grow'!E28) ->  | J41: =IF(A41="","",IF(A41="lactatingtube",E41/S41/'1. Impact of cold stress'!$B$2,IF('3. Basic Calculator'!A41="drytube","",IF(A41="Footbath",G41/S41/'1. Impact of cold stress'!$B$2,IF(B41='Sheet 5'!$A$114,E41/'1. Impact of cold stress'!$B$2,IF(A41="other",H41/S41,IF(U41="kg",H41/S41,""))))))) ->  | K41: =IF(A41="","",IF(A41="lactatingtube",E41/T41/'1. Impact of cold stress'!$B$2,IF('3. Basic Calculator'!A41="drytube",E41/T41/'1. Impact of cold stress'!$B$2,IF(A41="Footbath",J41,IF(B41='Sheet 5'!$A$114,E41/T41/'1. Impact of cold stress'!$B$2,IF(A41="other",H41/T41,IF(U41="kg",H41/T41,""))))))) ->  | L41: =IF(A41="","",IF(A41="Footbath","Cow",IF(B41='Sheet 5'!$A$114,"Cow",IF(A41="other","PCU",IF(U41="kg","PCU",IF(U41="unit","Cow"," ")))))) -> 
A42: =IF('2. Energy required to grow'!A29="","",'2. Energy required to grow'!A29) ->  | B42: =IF('2. Energy required to grow'!B29="","",'2. Energy required to grow'!B29) ->  | E42: =IF('2. Energy required to grow'!C29="","",'2. Energy required to grow'!C29) ->  | F42: =IF('2. Energy required to grow'!D29="","",'2. Energy required to grow'!D29) ->  | G42: =IF(B42="","",E42*VLOOKUP(B42,All,8,FALSE)) ->  | H42: =IF('2. Energy required to grow'!E29="","",'2. Energy required to grow'!E29) ->  | J42: =IF(A42="","",IF(A42="lactatingtube",E42/S42/'1. Impact of cold stress'!$B$2,IF('3. Basic Calculator'!A42="drytube","",IF(A42="Footbath",G42/S42/'1. Impact of cold stress'!$B$2,IF(B42='Sheet 5'!$A$114,E42/'1. Impact of cold stress'!$B$2,IF(A42="other",H42/S42,IF(U42="kg",H42/S42,""))))))) ->  | K42: =IF(A42="","",IF(A42="lactatingtube",E42/T42/'1. Impact of cold stress'!$B$2,IF('3. Basic Calculator'!A42="drytube",E42/T42/'1. Impact of cold stress'!$B$2,IF(A42="Footbath",J42,IF(B42='Sheet 5'!$A$114,E42/T42/'1. Impact of cold stress'!$B$2,IF(A42="other",H42/T42,IF(U42="kg",H42/T42,""))))))) ->  | L42: =IF(A42="","",IF(A42="Footbath","Cow",IF(B42='Sheet 5'!$A$114,"Cow",IF(A42="other","PCU",IF(U42="kg","PCU",IF(U42="unit","Cow"," ")))))) -> 
A43: =IF('2. Energy required to grow'!A30="","",'2. Energy required to grow'!A30) ->  | B43: =IF('2. Energy required to grow'!B30="","",'2. Energy required to grow'!B30) ->  | E43: =IF('2. Energy required to grow'!C30="","",'2. Energy required to grow'!C30) ->  | F43: =IF('2. Energy required to grow'!D30="","",'2. Energy required to grow'!D30) ->  | G43: =IF(B43="","",E43*VLOOKUP(B43,All,8,FALSE)) ->  | H43: =IF('2. Energy required to grow'!E30="","",'2. Energy required to grow'!E30) ->  | J43: =IF(A43="","",IF(A43="lactatingtube",E43/S43/'1. Impact of cold stress'!$B$2,IF('3. Basic Calculator'!A43="drytube","",IF(A43="Footbath",G43/S43/'1. Impact of cold stress'!$B$2,IF(B43='Sheet 5'!$A$114,E43/'1. Impact of cold stress'!$B$2,IF(A43="other",H43/S43,IF(U43="kg",H43/S43,""))))))) ->  | K43: =IF(A43="","",IF(A43="lactatingtube",E43/T43/'1. Impact of cold stress'!$B$2,IF('3. Basic Calculator'!A43="drytube",E43/T43/'1. Impact of cold stress'!$B$2,IF(A43="Footbath",J43,IF(B43='Sheet 5'!$A$114,E43/T43/'1. Impact of cold stress'!$B$2,IF(A43="other",H43/T43,IF(U43="kg",H43/T43,""))))))) ->  | L43: =IF(A43="","",IF(A43="Footbath","Cow",IF(B43='Sheet 5'!$A$114,"Cow",IF(A43="other","PCU",IF(U43="kg","PCU",IF(U43="unit","Cow"," ")))))) -> 
A44: =IF('2. Energy required to grow'!A31="","",'2. Energy required to grow'!A31) ->  | B44: =IF('2. Energy required to grow'!B31="","",'2. Energy required to grow'!B31) ->  | E44: =IF('2. Energy required to grow'!C31="","",'2. Energy required to grow'!C31) ->  | F44: =IF('2. Energy required to grow'!D31="","",'2. Energy required to grow'!D31) ->  | G44: =IF(B44="","",E44*VLOOKUP(B44,All,8,FALSE)) ->  | H44: =IF('2. Energy required to grow'!E31="","",'2. Energy required to grow'!E31) ->  | J44: =IF(A44="","",IF(A44="lactatingtube",E44/S44/'1. Impact of cold stress'!$B$2,IF('3. Basic Calculator'!A44="drytube","",IF(A44="Footbath",G44/S44/'1. Impact of cold stress'!$B$2,IF(B44='Sheet 5'!$A$114,E44/'1. Impact of cold stress'!$B$2,IF(A44="other",H44/S44,IF(U44="kg",H44/S44,""))))))) ->  | K44: =IF(A44="","",IF(A44="lactatingtube",E44/T44/'1. Impact of cold stress'!$B$2,IF('3. Basic Calculator'!A44="drytube",E44/T44/'1. Impact of cold stress'!$B$2,IF(A44="Footbath",J44,IF(B44='Sheet 5'!$A$114,E44/T44/'1. Impact of cold stress'!$B$2,IF(A44="other",H44/T44,IF(U44="kg",H44/T44,""))))))) ->  | L44: =IF(A44="","",IF(A44="Footbath","Cow",IF(B44='Sheet 5'!$A$114,"Cow",IF(A44="other","PCU",IF(U44="kg","PCU",IF(U44="unit","Cow"," ")))))) -> 
A45: =IF('2. Energy required to grow'!A32="","",'2. Energy required to grow'!A32) ->  | B45: =IF('2. Energy required to grow'!B32="","",'2. Energy required to grow'!B32) ->  | E45: =IF('2. Energy required to grow'!C32="","",'2. Energy required to grow'!C32) ->  | F45: =IF('2. Energy required to grow'!D32="","",'2. Energy required to grow'!D32) ->  | G45: =IF(B45="","",E45*VLOOKUP(B45,All,8,FALSE)) ->  | H45: =IF('2. Energy required to grow'!E32="","",'2. Energy required to grow'!E32) ->  | J45: =IF(A45="","",IF(A45="lactatingtube",E45/S45/'1. Impact of cold stress'!$B$2,IF('3. Basic Calculator'!A45="drytube","",IF(A45="Footbath",G45/S45/'1. Impact of cold stress'!$B$2,IF(B45='Sheet 5'!$A$114,E45/'1. Impact of cold stress'!$B$2,IF(A45="other",H45/S45,IF(U45="kg",H45/S45,""))))))) ->  | K45: =IF(A45="","",IF(A45="lactatingtube",E45/T45/'1. Impact of cold stress'!$B$2,IF('3. Basic Calculator'!A45="drytube",E45/T45/'1. Impact of cold stress'!$B$2,IF(A45="Footbath",J45,IF(B45='Sheet 5'!$A$114,E45/T45/'1. Impact of cold stress'!$B$2,IF(A45="other",H45/T45,IF(U45="kg",H45/T45,""))))))) ->  | L45: =IF(A45="","",IF(A45="Footbath","Cow",IF(B45='Sheet 5'!$A$114,"Cow",IF(A45="other","PCU",IF(U45="kg","PCU",IF(U45="unit","Cow"," ")))))) -> 
A46: =IF('2. Energy required to grow'!A33="","",'2. Energy required to grow'!A33) ->  | B46: =IF('2. Energy required to grow'!B33="","",'2. Energy required to grow'!B33) ->  | E46: =IF('2. Energy required to grow'!C33="","",'2. Energy required to grow'!C33) ->  | F46: =IF('2. Energy required to grow'!D33="","",'2. Energy required to grow'!D33) ->  | H46: =IF('2. Energy required to grow'!E33="","",'2. Energy required to grow'!E33) ->  | J46: =IF(A46="","",IF(A46="lactatingtube",E46/S46/'1. Impact of cold stress'!$B$2,IF('3. Basic Calculator'!A46="drytube","",IF(A46="Footbath",G46/S46/'1. Impact of cold stress'!$B$2,IF(B46='Sheet 5'!$A$114,E46/'1. Impact of cold stress'!$B$2,IF(A46="other",H46/S46,IF(U46="kg",H46/S46,""))))))) ->  | K46: =IF(A46="","",IF(A46="lactatingtube",E46/T46/'1. Impact of cold stress'!$B$2,IF('3. Basic Calculator'!A46="drytube",E46/T46/'1. Impact of cold stress'!$B$2,IF(A46="Footbath",J46,IF(B46='Sheet 5'!$A$114,E46/T46/'1. Impact of cold stress'!$B$2,IF(A46="other",H46/T46,IF(U46="kg",H46/T46,""))))))) ->  | L46: =IF(A46="","",IF(A46="Footbath","Cow",IF(B46='Sheet 5'!$A$114,"Cow",IF(A46="other","PCU",IF(U46="kg","PCU",IF(U46="unit","Cow"," ")))))) -> 
A47: =IF('2. Energy required to grow'!A34="","",'2. Energy required to grow'!A34) ->  | B47: =IF('2. Energy required to grow'!B34="","",'2. Energy required to grow'!B34) ->  | E47: =IF('2. Energy required to grow'!C34="","",'2. Energy required to grow'!C34) ->  | F47: =IF('2. Energy required to grow'!D34="","",'2. Energy required to grow'!D34) ->  | H47: =IF('2. Energy required to grow'!E34="","",'2. Energy required to grow'!E34) ->  | J47: =IF(A47="","",IF(A47="lactatingtube",E47/S47/'1. Impact of cold stress'!$B$2,IF('3. Basic Calculator'!A47="drytube","",IF(A47="Footbath",G47/S47/'1. Impact of cold stress'!$B$2,IF(B47='Sheet 5'!$A$114,E47/'1. Impact of cold stress'!$B$2,IF(A47="other",H47/S47,IF(U47="kg",H47/S47,""))))))) ->  | K47: =IF(A47="","",IF(A47="lactatingtube",E47/T47/'1. Impact of cold stress'!$B$2,IF('3. Basic Calculator'!A47="drytube",E47/T47/'1. Impact of cold stress'!$B$2,IF(A47="Footbath",J47,IF(B47='Sheet 5'!$A$114,E47/T47/'1. Impact of cold stress'!$B$2,IF(A47="other",H47/T47,IF(U47="kg",H47/T47,""))))))) ->  | L47: =IF(A47="","",IF(A47="Footbath","Cow",IF(B47='Sheet 5'!$A$114,"Cow",IF(A47="other","PCU",IF(U47="kg","PCU",IF(U47="unit","Cow"," ")))))) -> 
A48: =IF('2. Energy required to grow'!A35="","",'2. Energy required to grow'!A35) ->  | B48: =IF('2. Energy required to grow'!B35="","",'2. Energy required to grow'!B35) ->  | E48: =IF('2. Energy required to grow'!C35="","",'2. Energy required to grow'!C35) ->  | F48: =IF('2. Energy required to grow'!D35="","",'2. Energy required to grow'!D35) ->  | H48: =IF('2. Energy required to grow'!E35="","",'2. Energy required to grow'!E35) ->  | J48: =IF(A48="","",IF(A48="lactatingtube",E48/S48/'1. Impact of cold stress'!$B$2,IF('3. Basic Calculator'!A48="drytube","",IF(A48="Footbath",G48/S48/'1. Impact of cold stress'!$B$2,IF(B48='Sheet 5'!$A$114,E48/'1. Impact of cold stress'!$B$2,IF(A48="other",H48/S48,IF(U48="kg",H48/S48,""))))))) ->  | K48: =IF(A48="","",IF(A48="lactatingtube",E48/T48/'1. Impact of cold stress'!$B$2,IF('3. Basic Calculator'!A48="drytube",E48/T48/'1. Impact of cold stress'!$B$2,IF(A48="Footbath",J48,IF(B48='Sheet 5'!$A$114,E48/T48/'1. Impact of cold stress'!$B$2,IF(A48="other",H48/T48,IF(U48="kg",H48/T48,""))))))) ->  | L48: =IF(A48="","",IF(A48="Footbath","Cow",IF(B48='Sheet 5'!$A$114,"Cow",IF(A48="other","PCU",IF(U48="kg","PCU",IF(U48="unit","Cow"," ")))))) -> 
A49: =IF('2. Energy required to grow'!A36="","",'2. Energy required to grow'!A36) ->  | B49: =IF('2. Energy required to grow'!B36="","",'2. Energy required to grow'!B36) ->  | E49: =IF('2. Energy required to grow'!C36="","",'2. Energy required to grow'!C36) ->  | F49: =IF('2. Energy required to grow'!D36="","",'2. Energy required to grow'!D36) ->  | H49: =IF('2. Energy required to grow'!E36="","",'2. Energy required to grow'!E36) ->  | J49: =IF(A49="","",IF(A49="lactatingtube",E49/S49/'1. Impact of cold stress'!$B$2,IF('3. Basic Calculator'!A49="drytube","",IF(A49="Footbath",G49/S49/'1. Impact of cold stress'!$B$2,IF(B49='Sheet 5'!$A$114,E49/'1. Impact of cold stress'!$B$2,IF(A49="other",H49/S49,IF(U49="kg",H49/S49,""))))))) ->  | K49: =IF(A49="","",IF(A49="lactatingtube",E49/T49/'1. Impact of cold stress'!$B$2,IF('3. Basic Calculator'!A49="drytube",E49/T49/'1. Impact of cold stress'!$B$2,IF(A49="Footbath",J49,IF(B49='Sheet 5'!$A$114,E49/T49/'1. Impact of cold stress'!$B$2,IF(A49="other",H49/T49,IF(U49="kg",H49/T49,""))))))) ->  | L49: =IF(A49="","",IF(A49="Footbath","Cow",IF(B49='Sheet 5'!$A$114,"Cow",IF(A49="other","PCU",IF(U49="kg","PCU",IF(U49="unit","Cow"," ")))))) -> 
A50: =IF('2. Energy required to grow'!A37="","",'2. Energy required to grow'!A37) ->  | B50: =IF('2. Energy required to grow'!B37="","",'2. Energy required to grow'!B37) ->  | E50: =IF('2. Energy required to grow'!C37="","",'2. Energy required to grow'!C37) ->  | F50: =IF('2. Energy required to grow'!D37="","",'2. Energy required to grow'!D37) ->  | H50: =IF('2. Energy required to grow'!E37="","",'2. Energy required to grow'!E37) ->  | J50: =IF(A50="","",IF(A50="lactatingtube",E50/S50/'1. Impact of cold stress'!$B$2,IF('3. Basic Calculator'!A50="drytube","",IF(A50="Footbath",G50/S50/'1. Impact of cold stress'!$B$2,IF(B50='Sheet 5'!$A$114,E50/'1. Impact of cold stress'!$B$2,IF(A50="other",H50/S50,IF(U50="kg",H50/S50,""))))))) ->  | K50: =IF(A50="","",IF(A50="lactatingtube",E50/T50/'1. Impact of cold stress'!$B$2,IF('3. Basic Calculator'!A50="drytube",E50/T50/'1. Impact of cold stress'!$B$2,IF(A50="Footbath",J50,IF(B50='Sheet 5'!$A$114,E50/T50/'1. Impact of cold stress'!$B$2,IF(A50="other",H50/T50,IF(U50="kg",H50/T50,""))))))) ->  | L50: =IF(A50="","",IF(A50="Footbath","Cow",IF(B50='Sheet 5'!$A$114,"Cow",IF(A50="other","PCU",IF(U50="kg","PCU",IF(U50="unit","Cow"," ")))))) -> 
A51: =IF('2. Energy required to grow'!A38="","",'2. Energy required to grow'!A38) ->  | B51: =IF('2. Energy required to grow'!B38="","",'2. Energy required to grow'!B38) ->  | E51: =IF('2. Energy required to grow'!C38="","",'2. Energy required to grow'!C38) ->  | F51: =IF('2. Energy required to grow'!D38="","",'2. Energy required to grow'!D38) ->  | H51: =IF('2. Energy required to grow'!E38="","",'2. Energy required to grow'!E38) ->  | J51: =IF(A51="","",IF(A51="lactatingtube",E51/S51/'1. Impact of cold stress'!$B$2,IF('3. Basic Calculator'!A51="drytube","",IF(A51="Footbath",G51/S51/'1. Impact of cold stress'!$B$2,IF(B51='Sheet 5'!$A$114,E51/'1. Impact of cold stress'!$B$2,IF(A51="other",H51/S51,IF(U51="kg",H51/S51,""))))))) ->  | K51: =IF(A51="","",IF(A51="lactatingtube",E51/T51/'1. Impact of cold stress'!$B$2,IF('3. Basic Calculator'!A51="drytube",E51/T51/'1. Impact of cold stress'!$B$2,IF(A51="Footbath",J51,IF(B51='Sheet 5'!$A$114,E51/T51/'1. Impact of cold stress'!$B$2,IF(A51="other",H51/T51,IF(U51="kg",H51/T51,""))))))) ->  | L51: =IF(A51="","",IF(A51="Footbath","Cow",IF(B51='Sheet 5'!$A$114,"Cow",IF(A51="other","PCU",IF(U51="kg","PCU",IF(U51="unit","Cow"," ")))))) -> 
A52: =IF('2. Energy required to grow'!A39="","",'2. Energy required to grow'!A39) ->  | B52: =IF('2. Energy required to grow'!B39="","",'2. Energy required to grow'!B39) ->  | E52: =IF('2. Energy required to grow'!C39="","",'2. Energy required to grow'!C39) ->  | F52: =IF('2. Energy required to grow'!D39="","",'2. Energy required to grow'!D39) ->  | H52: =IF('2. Energy required to grow'!E39="","",'2. Energy required to grow'!E39) ->  | J52: =IF(A52="","",IF(A52="lactatingtube",E52/S52/'1. Impact of cold stress'!$B$2,IF('3. Basic Calculator'!A52="drytube","",IF(A52="Footbath",G52/S52/'1. Impact of cold stress'!$B$2,IF(B52='Sheet 5'!$A$114,E52/'1. Impact of cold stress'!$B$2,IF(A52="other",H52/S52,IF(U52="kg",H52/S52,""))))))) ->  | K52: =IF(A52="","",IF(A52="lactatingtube",E52/T52/'1. Impact of cold stress'!$B$2,IF('3. Basic Calculator'!A52="drytube",E52/T52/'1. Impact of cold stress'!$B$2,IF(A52="Footbath",J52,IF(B52='Sheet 5'!$A$114,E52/T52/'1. Impact of cold stress'!$B$2,IF(A52="other",H52/T52,IF(U52="kg",H52/T52,""))))))) ->  | L52: =IF(A52="","",IF(A52="Footbath","Cow",IF(B52='Sheet 5'!$A$114,"Cow",IF(A52="other","PCU",IF(U52="kg","PCU",IF(U52="unit","Cow"," ")))))) -> 
A53: =IF('2. Energy required to grow'!A40="","",'2. Energy required to grow'!A40) ->  | B53: =IF('2. Energy required to grow'!B40="","",'2. Energy required to grow'!B40) ->  | E53: =IF('2. Energy required to grow'!C40="","",'2. Energy required to grow'!C40) ->  | F53: =IF('2. Energy required to grow'!D40="","",'2. Energy required to grow'!D40) ->  | H53: =IF('2. Energy required to grow'!E40="","",'2. Energy required to grow'!E40) ->  | J53: =IF(A53="","",IF(A53="lactatingtube",E53/S53/'1. Impact of cold stress'!$B$2,IF('3. Basic Calculator'!A53="drytube","",IF(A53="Footbath",G53/S53/'1. Impact of cold stress'!$B$2,IF(B53='Sheet 5'!$A$114,E53/'1. Impact of cold stress'!$B$2,IF(A53="other",H53/S53,IF(U53="kg",H53/S53,""))))))) ->  | K53: =IF(A53="","",IF(A53="lactatingtube",E53/T53/'1. Impact of cold stress'!$B$2,IF('3. Basic Calculator'!A53="drytube",E53/T53/'1. Impact of cold stress'!$B$2,IF(A53="Footbath",J53,IF(B53='Sheet 5'!$A$114,E53/T53/'1. Impact of cold stress'!$B$2,IF(A53="other",H53/T53,IF(U53="kg",H53/T53,""))))))) ->  | L53: =IF(A53="","",IF(A53="Footbath","Cow",IF(B53='Sheet 5'!$A$114,"Cow",IF(A53="other","PCU",IF(U53="kg","PCU",IF(U53="unit","Cow"," ")))))) -> 
A54: =IF('2. Energy required to grow'!A41="","",'2. Energy required to grow'!A41) ->  | B54: =IF('2. Energy required to grow'!B41="","",'2. Energy required to grow'!B41) ->  | E54: =IF('2. Energy required to grow'!C41="","",'2. Energy required to grow'!C41) ->  | F54: =IF('2. Energy required to grow'!D41="","",'2. Energy required to grow'!D41) ->  | H54: =IF('2. Energy required to grow'!E41="","",'2. Energy required to grow'!E41) ->  | J54: =IF(A54="","",IF(A54="lactatingtube",E54/S54/'1. Impact of cold stress'!$B$2,IF('3. Basic Calculator'!A54="drytube","",IF(A54="Footbath",G54/S54/'1. Impact of cold stress'!$B$2,IF(B54='Sheet 5'!$A$114,E54/'1. Impact of cold stress'!$B$2,IF(A54="other",H54/S54,IF(U54="kg",H54/S54,""))))))) ->  | K54: =IF(A54="","",IF(A54="lactatingtube",E54/T54/'1. Impact of cold stress'!$B$2,IF('3. Basic Calculator'!A54="drytube",E54/T54/'1. Impact of cold stress'!$B$2,IF(A54="Footbath",J54,IF(B54='Sheet 5'!$A$114,E54/T54/'1. Impact of cold stress'!$B$2,IF(A54="other",H54/T54,IF(U54="kg",H54/T54,""))))))) ->  | L54: =IF(A54="","",IF(A54="Footbath","Cow",IF(B54='Sheet 5'!$A$114,"Cow",IF(A54="other","PCU",IF(U54="kg","PCU",IF(U54="unit","Cow"," ")))))) -> 
A55: =IF('2. Energy required to grow'!A42="","",'2. Energy required to grow'!A42) ->  | B55: =IF('2. Energy required to grow'!B42="","",'2. Energy required to grow'!B42) ->  | E55: =IF('2. Energy required to grow'!C42="","",'2. Energy required to grow'!C42) ->  | F55: =IF('2. Energy required to grow'!D42="","",'2. Energy required to grow'!D42) ->  | H55: =IF('2. Energy required to grow'!E42="","",'2. Energy required to grow'!E42) ->  | J55: =IF(A55="","",IF(A55="lactatingtube",E55/S55/'1. Impact of cold stress'!$B$2,IF('3. Basic Calculator'!A55="drytube","",IF(A55="Footbath",G55/S55/'1. Impact of cold stress'!$B$2,IF(B55='Sheet 5'!$A$114,E55/'1. Impact of cold stress'!$B$2,IF(A55="other",H55/S55,IF(U55="kg",H55/S55,""))))))) ->  | K55: =IF(A55="","",IF(A55="lactatingtube",E55/T55/'1. Impact of cold stress'!$B$2,IF('3. Basic Calculator'!A55="drytube",E55/T55/'1. Impact of cold stress'!$B$2,IF(A55="Footbath",J55,IF(B55='Sheet 5'!$A$114,E55/T55/'1. Impact of cold stress'!$B$2,IF(A55="other",H55/T55,IF(U55="kg",H55/T55,""))))))) ->  | L55: =IF(A55="","",IF(A55="Footbath","Cow",IF(B55='Sheet 5'!$A$114,"Cow",IF(A55="other","PCU",IF(U55="kg","PCU",IF(U55="unit","Cow"," ")))))) -> 
A56: =IF('2. Energy required to grow'!A43="","",'2. Energy required to grow'!A43) ->  | B56: =IF('2. Energy required to grow'!B43="","",'2. Energy required to grow'!B43) ->  | E56: =IF('2. Energy required to grow'!C43="","",'2. Energy required to grow'!C43) ->  | F56: =IF('2. Energy required to grow'!D43="","",'2. Energy required to grow'!D43) ->  | H56: =IF('2. Energy required to grow'!E43="","",'2. Energy required to grow'!E43) ->  | J56: =IF(A56="","",IF(A56="lactatingtube",E56/S56/'1. Impact of cold stress'!$B$2,IF('3. Basic Calculator'!A56="drytube","",IF(A56="Footbath",G56/S56/'1. Impact of cold stress'!$B$2,IF(B56='Sheet 5'!$A$114,E56/'1. Impact of cold stress'!$B$2,IF(A56="other",H56/S56,IF(U56="kg",H56/S56,""))))))) ->  | K56: =IF(A56="","",IF(A56="lactatingtube",E56/T56/'1. Impact of cold stress'!$B$2,IF('3. Basic Calculator'!A56="drytube",E56/T56/'1. Impact of cold stress'!$B$2,IF(A56="Footbath",J56,IF(B56='Sheet 5'!$A$114,E56/T56/'1. Impact of cold stress'!$B$2,IF(A56="other",H56/T56,IF(U56="kg",H56/T56,""))))))) ->  | L56: =IF(A56="","",IF(A56="Footbath","Cow",IF(B56='Sheet 5'!$A$114,"Cow",IF(A56="other","PCU",IF(U56="kg","PCU",IF(U56="unit","Cow"," ")))))) -> 
A57: =IF('2. Energy required to grow'!A44="","",'2. Energy required to grow'!A44) ->  | B57: =IF('2. Energy required to grow'!B44="","",'2. Energy required to grow'!B44) ->  | E57: =IF('2. Energy required to grow'!C44="","",'2. Energy required to grow'!C44) ->  | F57: =IF('2. Energy required to grow'!D44="","",'2. Energy required to grow'!D44) ->  | H57: =IF('2. Energy required to grow'!E44="","",'2. Energy required to grow'!E44) ->  | J57: =IF(A57="","",IF(A57="lactatingtube",E57/S57/'1. Impact of cold stress'!$B$2,IF('3. Basic Calculator'!A57="drytube","",IF(A57="Footbath",G57/S57/'1. Impact of cold stress'!$B$2,IF(B57='Sheet 5'!$A$114,E57/'1. Impact of cold stress'!$B$2,IF(A57="other",H57/S57,IF(U57="kg",H57/S57,""))))))) ->  | K57: =IF(A57="","",IF(A57="lactatingtube",E57/T57/'1. Impact of cold stress'!$B$2,IF('3. Basic Calculator'!A57="drytube",E57/T57/'1. Impact of cold stress'!$B$2,IF(A57="Footbath",J57,IF(B57='Sheet 5'!$A$114,E57/T57/'1. Impact of cold stress'!$B$2,IF(A57="other",H57/T57,IF(U57="kg",H57/T57,""))))))) ->  | L57: =IF(A57="","",IF(A57="Footbath","Cow",IF(B57='Sheet 5'!$A$114,"Cow",IF(A57="other","PCU",IF(U57="kg","PCU",IF(U57="unit","Cow"," ")))))) -> 
A58: =IF('2. Energy required to grow'!A45="","",'2. Energy required to grow'!A45) ->  | B58: =IF('2. Energy required to grow'!B45="","",'2. Energy required to grow'!B45) ->  | E58: =IF('2. Energy required to grow'!C45="","",'2. Energy required to grow'!C45) ->  | F58: =IF('2. Energy required to grow'!D45="","",'2. Energy required to grow'!D45) ->  | H58: =IF('2. Energy required to grow'!E45="","",'2. Energy required to grow'!E45) ->  | J58: =IF(A58="","",IF(A58="lactatingtube",E58/S58/'1. Impact of cold stress'!$B$2,IF('3. Basic Calculator'!A58="drytube","",IF(A58="Footbath",G58/S58/'1. Impact of cold stress'!$B$2,IF(B58='Sheet 5'!$A$114,E58/'1. Impact of cold stress'!$B$2,IF(A58="other",H58/S58,IF(U58="kg",H58/S58,""))))))) ->  | K58: =IF(A58="","",IF(A58="lactatingtube",E58/T58/'1. Impact of cold stress'!$B$2,IF('3. Basic Calculator'!A58="drytube",E58/T58/'1. Impact of cold stress'!$B$2,IF(A58="Footbath",J58,IF(B58='Sheet 5'!$A$114,E58/T58/'1. Impact of cold stress'!$B$2,IF(A58="other",H58/T58,IF(U58="kg",H58/T58,""))))))) ->  | L58: =IF(A58="","",IF(A58="Footbath","Cow",IF(B58='Sheet 5'!$A$114,"Cow",IF(A58="other","PCU",IF(U58="kg","PCU",IF(U58="unit","Cow"," ")))))) -> 
A59: =IF('2. Energy required to grow'!A46="","",'2. Energy required to grow'!A46) ->  | B59: =IF('2. Energy required to grow'!B46="","",'2. Energy required to grow'!B46) ->  | E59: =IF('2. Energy required to grow'!C46="","",'2. Energy required to grow'!C46) ->  | F59: =IF('2. Energy required to grow'!D46="","",'2. Energy required to grow'!D46) ->  | H59: =IF('2. Energy required to grow'!E46="","",'2. Energy required to grow'!E46) ->  | J59: =IF(A59="","",IF(A59="lactatingtube",E59/S59/'1. Impact of cold stress'!$B$2,IF('3. Basic Calculator'!A59="drytube","",IF(A59="Footbath",G59/S59/'1. Impact of cold stress'!$B$2,IF(B59='Sheet 5'!$A$114,E59/'1. Impact of cold stress'!$B$2,IF(A59="other",H59/S59,IF(U59="kg",H59/S59,""))))))) ->  | K59: =IF(A59="","",IF(A59="lactatingtube",E59/T59/'1. Impact of cold stress'!$B$2,IF('3. Basic Calculator'!A59="drytube",E59/T59/'1. Impact of cold stress'!$B$2,IF(A59="Footbath",J59,IF(B59='Sheet 5'!$A$114,E59/T59/'1. Impact of cold stress'!$B$2,IF(A59="other",H59/T59,IF(U59="kg",H59/T59,""))))))) ->  | L59: =IF(A59="","",IF(A59="Footbath","Cow",IF(B59='Sheet 5'!$A$114,"Cow",IF(A59="other","PCU",IF(U59="kg","PCU",IF(U59="unit","Cow"," ")))))) -> 
A60: =IF('2. Energy required to grow'!A47="","",'2. Energy required to grow'!A47) ->  | B60: =IF('2. Energy required to grow'!B47="","",'2. Energy required to grow'!B47) ->  | E60: =IF('2. Energy required to grow'!C47="","",'2. Energy required to grow'!C47) ->  | F60: =IF('2. Energy required to grow'!D47="","",'2. Energy required to grow'!D47) ->  | H60: =IF('2. Energy required to grow'!E47="","",'2. Energy required to grow'!E47) ->  | J60: =IF(A60="","",IF(A60="lactatingtube",E60/S60/'1. Impact of cold stress'!$B$2,IF('3. Basic Calculator'!A60="drytube","",IF(A60="Footbath",G60/S60/'1. Impact of cold stress'!$B$2,IF(B60='Sheet 5'!$A$114,E60/'1. Impact of cold stress'!$B$2,IF(A60="other",H60/S60,IF(U60="kg",H60/S60,""))))))) ->  | K60: =IF(A60="","",IF(A60="lactatingtube",E60/T60/'1. Impact of cold stress'!$B$2,IF('3. Basic Calculator'!A60="drytube",E60/T60/'1. Impact of cold stress'!$B$2,IF(A60="Footbath",J60,IF(B60='Sheet 5'!$A$114,E60/T60/'1. Impact of cold stress'!$B$2,IF(A60="other",H60/T60,IF(U60="kg",H60/T60,""))))))) ->  | L60: =IF(A60="","",IF(A60="Footbath","Cow",IF(B60='Sheet 5'!$A$114,"Cow",IF(A60="other","PCU",IF(U60="kg","PCU",IF(U60="unit","Cow"," ")))))) -> 
A61: =IF('2. Energy required to grow'!A48="","",'2. Energy required to grow'!A48) ->  | B61: =IF('2. Energy required to grow'!B48="","",'2. Energy required to grow'!B48) ->  | E61: =IF('2. Energy required to grow'!C48="","",'2. Energy required to grow'!C48) ->  | F61: =IF('2. Energy required to grow'!D48="","",'2. Energy required to grow'!D48) ->  | H61: =IF('2. Energy required to grow'!E48="","",'2. Energy required to grow'!E48) ->  | J61: =IF(A61="","",IF(A61="lactatingtube",E61/S61/'1. Impact of cold stress'!$B$2,IF('3. Basic Calculator'!A61="drytube","",IF(A61="Footbath",G61/S61/'1. Impact of cold stress'!$B$2,IF(B61='Sheet 5'!$A$114,E61/'1. Impact of cold stress'!$B$2,IF(A61="other",H61/S61,IF(U61="kg",H61/S61,""))))))) ->  | K61: =IF(A61="","",IF(A61="lactatingtube",E61/T61/'1. Impact of cold stress'!$B$2,IF('3. Basic Calculator'!A61="drytube",E61/T61/'1. Impact of cold stress'!$B$2,IF(A61="Footbath",J61,IF(B61='Sheet 5'!$A$114,E61/T61/'1. Impact of cold stress'!$B$2,IF(A61="other",H61/T61,IF(U61="kg",H61/T61,""))))))) ->  | L61: =IF(A61="","",IF(A61="Footbath","Cow",IF(B61='Sheet 5'!$A$114,"Cow",IF(A61="other","PCU",IF(U61="kg","PCU",IF(U61="unit","Cow"," ")))))) -> 
A62: =IF('2. Energy required to grow'!A49="","",'2. Energy required to grow'!A49) ->  | B62: =IF('2. Energy required to grow'!B49="","",'2. Energy required to grow'!B49) ->  | E62: =IF('2. Energy required to grow'!C49="","",'2. Energy required to grow'!C49) ->  | F62: =IF('2. Energy required to grow'!D49="","",'2. Energy required to grow'!D49) ->  | H62: =IF('2. Energy required to grow'!E49="","",'2. Energy required to grow'!E49) ->  | J62: =IF(A62="","",IF(A62="lactatingtube",E62/S62/'1. Impact of cold stress'!$B$2,IF('3. Basic Calculator'!A62="drytube","",IF(A62="Footbath",G62/S62/'1. Impact of cold stress'!$B$2,IF(B62='Sheet 5'!$A$114,E62/'1. Impact of cold stress'!$B$2,IF(A62="other",H62/S62,IF(U62="kg",H62/S62,""))))))) ->  | K62: =IF(A62="","",IF(A62="lactatingtube",E62/T62/'1. Impact of cold stress'!$B$2,IF('3. Basic Calculator'!A62="drytube",E62/T62/'1. Impact of cold stress'!$B$2,IF(A62="Footbath",J62,IF(B62='Sheet 5'!$A$114,E62/T62/'1. Impact of cold stress'!$B$2,IF(A62="other",H62/T62,IF(U62="kg",H62/T62,""))))))) ->  | L62: =IF(A62="","",IF(A62="Footbath","Cow",IF(B62='Sheet 5'!$A$114,"Cow",IF(A62="other","PCU",IF(U62="kg","PCU",IF(U62="unit","Cow"," ")))))) -> 
A63: =IF('2. Energy required to grow'!A50="","",'2. Energy required to grow'!A50) ->  | B63: =IF('2. Energy required to grow'!B50="","",'2. Energy required to grow'!B50) ->  | E63: =IF('2. Energy required to grow'!C50="","",'2. Energy required to grow'!C50) ->  | F63: =IF('2. Energy required to grow'!D50="","",'2. Energy required to grow'!D50) ->  | H63: =IF('2. Energy required to grow'!E50="","",'2. Energy required to grow'!E50) ->  | J63: =IF(A63="","",IF(A63="lactatingtube",E63/S63/'1. Impact of cold stress'!$B$2,IF('3. Basic Calculator'!A63="drytube","",IF(A63="Footbath",G63/S63/'1. Impact of cold stress'!$B$2,IF(B63='Sheet 5'!$A$114,E63/'1. Impact of cold stress'!$B$2,IF(A63="other",H63/S63,IF(U63="kg",H63/S63,""))))))) ->  | K63: =IF(A63="","",IF(A63="lactatingtube",E63/T63/'1. Impact of cold stress'!$B$2,IF('3. Basic Calculator'!A63="drytube",E63/T63/'1. Impact of cold stress'!$B$2,IF(A63="Footbath",J63,IF(B63='Sheet 5'!$A$114,E63/T63/'1. Impact of cold stress'!$B$2,IF(A63="other",H63/T63,IF(U63="kg",H63/T63,""))))))) ->  | L63: =IF(A63="","",IF(A63="Footbath","Cow",IF(B63='Sheet 5'!$A$114,"Cow",IF(A63="other","PCU",IF(U63="kg","PCU",IF(U63="unit","Cow"," ")))))) -> 

Sheet 4. Instructions
A1: University of Nottingham Dairy Milk Replacer Calculator
A2: Disclaimer: Please note, use of this calculator is at the users own risk
A3: Instructions
A4: This calculator is designed to provide an estimation of the energy requirements of a pre-weaned dairy heifer and the
A5: amount of energy supplied by the amount of milk replacer fed to the calf
A6: The nutrition specifications of the individual milk replacer will be required, alongside the amount and concentration
A7: of milk replacer fed to the calves.
A9: Enter milk replacer and calf details by clicking:
A11: Please fill in any yellow highlighted squares with the relevant information
A12: The recommended target growth for pre-weaned calves is 0.8kg/day
A13: If the assumed ME of the concentrate feed is unkown, we suggest an assumption of 12ME
A14: If the moisture level of milk replacer is unknown, please assume 5%
A15: The environmental temperature will be required for additional information regarding the potential impact of the
A16: ambient temperature on the energy requirement of the calf
A17: Please beware that it is illegal to feed calves which are less than 28 days old once a day
A18: The current maximum advisable milk replacer concentration is 160g/L and therefore an alert will appear if you feed higher concentrations
A20: For further information regarding the energy requirements of the calves, please click here
A21: The energy requirements of the calf are equal to the calculate energy required for maintenance and growth at different
A22: growth rates, based on bodyweight and at thermoneutral temperatures and humdity
A23: The energy deficit is equal to the difference between the amount of energy required and the amount of energy required
A24: by the calf for maintenance and growth. A lack of energy is a negative and an excess of energy is a positive
A25: The energy required from concentrate equates to the amount of the concentrate that calf would be required to eat to make up
A26: for any potential deficit in energy provided solely by milk replacer. We are not suggesting that the calf is capable of eating and
A27: utilising that amount of concentrate; it is a theoretical amount in order to maintain that level of growth.
A29: The impact of cold stress: the theorectical extra energy required by a calf at different temperatures has
A30: been calculated and for more information, please click here

Sheet 5. Cost Calculator
A1: r

Sheet Sheet 5
A1: Yes
A2: No
